bitfinex-derivatives/quotes_SOLF0:USTF0_20250719
["timestamp","ask_amount","ask_price","bid_price","bid_amount"]
[1752933317017,3.08,177.46,177.42,3.25]
[1752933317216,3.08,177.46,177.43,3.25]
[1752933317518,3.08,177.46,177.44,3.25]
[1752933317913,3.08,177.45,177.4,5.634]
[1752933318113,3.08,177.45,177.43,3.25]
[1752933318415,2.39190441,177.45,177.39,5.6343]
[1752933318616,2.39190441,177.45,177.4,3.25]
[1752933318810,3.08,177.43,177.41,3.25]
[1752933319016,5.6329,177.44,177.42,3.25]
[1752933319218,5.6329,177.44,177.43,3.25]
[1752933319718,8.02450441,177.45,177.43,3.25]
[1752933319918,11.10450441,177.45,177.43,3.25]
[1752933320314,8.02450441,177.45,177.43,3.25]
[1752933320511,3.18,177.43,177.41,3.22]
[1752933320913,3.18,177.43,177.42,3.22]
[1752933321116,8.8131,177.43,177.42,3.22]
[1752933321517,3.18,177.42,177.4,3.22]
[1752933321721,8.8135,177.42,177.4,3.22]
[1752933321921,3.18,177.42,177.4,3.22]
[1752933322121,2.39190441,177.41,177.33,2.39190441]
[1752933322321,2.39190441,177.41,177.39,3.22]
[1752933322322,11.20580441,177.41,177.39,3.22]
[1752933323422,11.20580441,177.41,177.4,3.22]
[1752933323616,5.57190441,177.41,177.4,3.22]
[1752933323818,2.39190441,177.41,177.4,3.22]
[1752933324920,5.57190441,177.41,177.4,3.22]
[1752933325121,11.20560441,177.41,177.4,3.22]
[1752933330023,3.18,177.4,177.38,3.22]
[1752933330224,3.18,177.39,177.38,3.22]
[1752933330525,8.02560441,177.41,177.37,5.635]
[1752933330825,3.18,177.39,177.38,3.22]
[1752933331026,3.18,177.39,177.33,4.40784821]
[1752933331221,3.18,177.38,177.37,3.22]
[1752933332325,2.39190441,177.39,177.38,3.22]
[1752933332528,5.57190441,177.41,177.38,3.22]
[1752933333126,5.6343,177.4,177.39,3.22]
[1752933333330,8.8143,177.4,177.39,3.22]
[1752933333529,3.18,177.4,177.35,3.22]
[1752933333731,2.39190441,177.39,177.35,3.22]
[1752933333923,3.18,177.38,177.35,3.22]
[1752933334125,8.8149,177.38,177.35,5.6356]
[1752933334325,8.8149,177.38,177.37,3.22]
[1752933339531,5.6349,177.38,177.37,3.22]
[1752933339731,8.02650441,177.39,177.36,5.6353]
[1752933339927,2.39190441,177.39,177.38,3.22]
[1752933340327,3.18,177.4,177.38,3.22]
[1752933340530,2.39190441,177.41,177.39,3.22]
[1752933340828,2.39190441,177.41,177.39,5.6342]
[1752933341030,2.39190441,177.41,177.4,3.22]
[1752933346234,8.02560441,177.41,177.4,3.22]
[1752933346537,11.20560441,177.41,177.4,3.22]
[1752933346933,5.57190441,177.41,177.37,3.22]
[1752933347237,3.18,177.39,177.38,3.22]
[1752933347842,5.57190441,177.39,177.33,4.7343151]
[1752933348044,3.18,177.38,177.37,3.22]
[1752933348237,3.18,177.38,177.37,7.66012372]
[1752933348431,3.18,177.38,177.37,3.22]
[1752933348838,8.8147,177.38,177.37,3.22]
[1752933349036,2.39190441,177.39,177.35,3.22]
[1752933349446,8.8147,177.38,177.35,3.22]
[1752933349650,3.18,177.36,177.35,3.22]
[1752933349940,8.02710441,177.37,177.35,4.43997414]
[1752933350145,8.02710441,177.37,177.36,3.22]
[1752933350845,11.16710441,177.37,177.36,3.22]
[1752933353849,5.6354,177.36,177.34,3.1]
[1752933354049,8.7754,177.36,177.35,3.1]
[1752933354551,8.7754,177.36,177.35,7.54046692]
[1752933356354,8.7754,177.36,177.35,3.1]
[1752933356556,8.7759,177.35,177.31,3.1]
[1752933356852,8.02780441,177.35,177.34,3.1]
[1752933357052,8.02740441,177.36,177.34,3.1]
[1752933357645,2.39190441,177.36,177.34,3.1]
[1752933359350,8.02720441,177.36,177.34,3.1]
[1752933359547,5.53190441,177.36,177.32,5.6365]
[1752933359750,3.14,177.35,177.34,3.1]
[1752933361054,8.7759,177.35,177.34,3.1]
[1752933361255,5.6359,177.35,177.32,5.6365]
[1752933361458,8.7761,177.34,177.33,3.1]
[1752933362754,5.6361,177.34,177.33,3.1]
[1752933362955,8.02800441,177.34,177.33,3.1]
[1752933363155,11.16800441,177.34,177.33,3.1]
[1752933363357,5.53190441,177.34,177.33,3.1]
[1752933363562,3.14,177.35,177.34,3.1]
[1752933363758,2.39190441,177.35,177.34,3.1]
[1752933363949,22.532,177.43,177.34,3.1]
[1752933363950,3.14,177.37,177.34,3.1]
[1752933364352,5.6356,177.35,177.34,3.1]
[1752933364559,3.14,177.34,177.3,3.1]
[1752933364758,3.14,177.35,177.32,3.1]
[1752933364954,8.7758,177.35,177.32,8.7364]
[1752933365263,5.6358,177.35,177.33,3.1]
[1752933365657,8.02730441,177.36,177.33,8.7362]
[1752933365857,8.02730441,177.36,177.34,3.1]
[1752933366459,11.16730441,177.36,177.35,3.1]
[1752933367057,3.14,177.35,177.31,3.1]
[1752933367255,3.14,177.33,177.32,3.1]
[1752933367458,8.02800441,177.34,177.32,3.1]
[1752933367654,11.16800441,177.34,177.33,3.1]
[1752933368062,5.53190441,177.34,177.33,3.1]
[1752933368262,2.39190441,177.34,177.33,3.1]
[1752933371267,8.02730441,177.36,177.33,3.1]
[1752933371459,2.39190441,177.36,177.33,3.1]
[1752933371962,5.53190441,177.36,177.33,3.1]
[1752933372267,3.14,177.35,177.34,3.1]
[1752933372463,5.53190441,177.34,177.28,3.1]
[1752933372661,2.39190441,177.32,177.29,4.44114765]
[1752933372860,5.53190441,177.32,177.31,3.1]
[1752933373059,8.02850441,177.32,177.31,3.1]
[1752933373659,2.39190441,177.34,177.31,3.1]
[1752933374066,2.39190441,177.36,177.33,3.1]
[1752933374666,3.14,177.35,177.33,3.1]
[1752933375169,2.39190441,177.34,177.28,3.1]
[1752933375369,5.53190441,177.34,177.3,3.1]
[1752933375567,5.53190441,177.34,177.31,4.44064781]
[1752933375867,5.53190441,177.34,177.33,3.1]
[1752933375868,11.16780441,177.34,177.33,3.1]
[1752933376068,3.14,177.33,177.27,3.1]
[1752933376268,11.16870441,177.32,177.3,3.1]
[1752933376569,11.16870441,177.32,177.31,3.1]
[1752933377770,8.02870441,177.32,177.31,3.1]
[1752933378273,11.16870441,177.32,177.31,3.1]
[1752933379273,2.39190441,177.32,177.29,3.1]
[1752933379468,3.14,177.31,177.27,5.6381]
[1752933379670,2.39190441,177.31,177.3,3.1]
[1752933383173,3.12,177.38,177.28,3.14]
[1752933383377,2.39190441,177.3,177.28,3.14]
[1752933383677,2.39190441,177.32,177.29,5.6375]
[1752933383877,2.39190441,177.32,177.3,3.14]
[1752933384175,2.39190441,177.34,177.24,4.73959271]
[1752933384374,2.39190441,177.32,177.31,3.14]
[1752933384576,5.51190441,177.32,177.31,3.14]
[1752933385680,11.14850441,177.32,177.31,3.14]
[1752933386178,5.51190441,177.32,177.31,3.14]
[1752933386381,2.39190441,177.32,177.31,3.14]
[1752933387182,8.02850441,177.32,177.31,3.14]
[1752933387380,11.14850441,177.32,177.31,3.14]
[1752933387574,5.51190441,177.32,177.29,3.14]
[1752933387778,8.02910441,177.3,177.29,3.14]
[1752933388081,11.14910441,177.3,177.29,3.14]
[1752933388380,3.12,177.29,177.24,3.14]
[1752933388581,2.39190441,177.27,177.21,3.14]
[1752933388875,2.39190441,177.29,177.26,5.6385]
[1752933389080,2.39190441,177.29,177.27,3.14]
[1752933389477,8.02960441,177.29,177.27,3.14]
[1752933391482,5.6379,177.28,177.27,3.14]
[1752933392086,8.7585,177.26,177.25,3.14]
[1752933392286,3.12,177.28,177.21,3.14]
[1752933392481,3.12,177.28,177.19,4.73959271]
[1752933392482,2.39190441,177.26,177.23,3.14]
[1752933392681,8.03050441,177.26,177.24,3.14]
[1752933393281,11.15050441,177.26,177.25,3.14]
[1752933394074,2.39190441,177.26,177.25,3.14]
[1752933394984,8.03040441,177.26,177.25,3.14]
[1752933396380,11.15040441,177.26,177.25,3.14]
[1752933396984,2.39190441,177.3,177.19,3.14]
[1752933396985,3.12,177.29,177.19,3.14]
[1752933397181,2.39190441,177.22,177.21,3.14]
[1752933397786,8.03170441,177.22,177.21,3.14]
[1752933397987,2.39190441,177.22,177.21,3.14]
[1752933398593,2.39190441,177.24,177.21,3.14]
[1752933399093,5.6396,177.23,177.21,3.14]
[1752933399496,11.15170441,177.22,177.21,3.14]
[1752933399690,2.39190441,177.22,177.18,3.14]
[1752933399887,5.632,177.29,177.19,3.14]
[1752933400090,11.15180441,177.22,177.19,3.14]
[1752933400387,5.51190441,177.22,177.19,3.14]
[1752933400593,5.6403,177.21,177.19,3.14]
[1752933401094,3.12,177.21,177.2,3.14]
[1752933401896,8.7601,177.21,177.2,3.14]
[1752933403294,5.6401,177.21,177.2,3.14]
[1752933404487,8.03180441,177.22,177.2,3.14]
[1752933404685,2.39190441,177.22,177.2,3.14]
[1752933404891,5.6401,177.21,177.2,3.14]
[1752933405096,8.7601,177.21,177.2,3.14]
[1752933405694,5.6408,177.19,177.18,3.14]
[1752933405897,8.7608,177.19,177.18,3.14]
[1752933406489,3.12,177.19,177.18,3.14]
[1752933406801,11.15240441,177.2,177.19,3.14]
[1752933408098,5.6411,177.18,177.15,5.6419]
[1752933408292,11.15300441,177.18,177.17,3.14]
[1752933408493,2.39190441,177.18,177.12,3.14]
[1752933408797,5.51190441,177.16,177.12,3.14]
[1752933409101,5.51190441,177.16,177.13,5.6424]
[1752933409303,5.51190441,177.16,177.15,3.14]
[1752933409494,2.39190441,177.16,177.15,3.14]
[1752933410305,5.6416,177.17,177.15,3.14]
[1752933410500,5.51190441,177.18,177.15,8.7819]
[1752933410696,11.15320441,177.18,177.15,5.6419]
[1752933410899,11.15320441,177.18,177.17,3.3]
[1752933411502,8.7514,177.17,177.16,3.3]
[1752933411702,5.6414,177.17,177.16,3.3]
[1752933411903,8.7514,177.17,177.16,3.3]
[1752933412403,8.03300441,177.18,177.1,4.4195403]
[1752933412603,11.14300441,177.18,177.17,3.3]
[1752933413710,3.11,177.17,177.16,3.3]
[1752933416710,8.03300441,177.18,177.16,3.3]
[1752933416913,11.14300441,177.18,177.17,3.3]
[1752933417408,5.50190441,177.18,177.17,3.3]
[1752933417611,5.50190441,177.2,177.17,3.3]
[1752933418203,11.14250441,177.2,177.17,8.9412]
[1752933418407,5.50190441,177.2,177.13,3.3]
[1752933418816,5.6408,177.19,177.13,3.3]
[1752933419412,8.7508,177.19,177.17,3.3]
[1752933419614,11.14290441,177.18,177.17,3.3]
[1752933420412,3.11,177.17,177.15,5.6419]
[1752933420716,3.11,177.17,177.13,3.3]
[1752933421007,8.03290441,177.18,177.13,3.3]
[1752933421207,5.50190441,177.18,177.13,3.3]
[1752933421715,2.39190441,177.18,177.13,3.3]
[1752933421912,3.11,177.17,177.13,3.3]
[1752933422107,3.11,177.17,177.15,5.6418]
[1752933422313,3.11,177.17,177.16,3.3]
[1752933422818,8.7513,177.17,177.16,3.3]
[1752933423007,3.11,177.17,177.14,3.3]
[1752933423208,5.50190441,177.16,177.15,3.3]
[1752933423403,5.6421,177.15,177.06,11.2892]
[1752933423607,5.50190441,177.16,177.08,3.3]
[1752933423608,3.11,177.14,177.08,3.3]
[1752933423811,5.50190441,177.16,177.1,3.3]
[1752933424214,5.6421,177.15,177.13,3.3]
[1752933424707,11.2771,177.26,177.14,3.3]
[1752933424911,2.39190441,177.19,177.14,3.3]
[1752933425114,5.50190441,177.19,177.14,3.3]
[1752933425307,3.11,177.18,177.08,3.3]
[1752933425510,5.50190441,177.17,177.1,3.3]
[1752933425812,3.11,177.24,177.12,3.3]
[1752933426002,2.39190441,177.18,177.12,3.3]
[1752933426404,3.11,177.21,177.17,3.3]
[1752933426612,2.39190441,177.2,177.17,3.3]
[1752933427312,5.50190441,177.2,177.18,3.3]
[1752933427610,3.11,177.19,177.18,3.3]
[1752933428016,8.7507,177.19,177.18,3.3]
[1752933428515,5.6412,177.18,177.16,3.3]
[1752933428813,3.11,177.17,177.16,3.3]
[1752933429816,8.7512,177.18,177.17,3.3]
[1752933430514,8.7512,177.18,177.12,3.3]
[1752933430515,5.50190441,177.18,177.12,3.3]
[1752933430913,5.6415,177.17,177.14,5.6423]
[1752933431119,5.6415,177.17,177.15,3.3]
[1752933431520,2.39190441,177.19,177.15,3.3]
[1752933432219,2.39190441,177.19,177.18,3.3]
[1752933432726,3.11,177.25,177.12,3.3]
[1752933432920,2.39190441,177.19,177.14,3.3]
[1752933433121,5.6415,177.17,177.14,8.9421]
[1752933433319,3.11,177.17,177.15,3.3]
[1752933433621,3.11,177.16,177.15,3.3]
[1752933433921,8.7517,177.16,177.15,3.3]
[1752933434421,5.6417,177.16,177.15,3.3]
[1752933434822,5.6415,177.17,177.15,3.3]
[1752933435023,3.11,177.2,177.15,3.3]
[1752933435224,22.532,177.26,177.09,2.39190441]
[1752933435225,8.7515,177.17,177.16,3.3]
[1752933436427,11.14340441,177.17,177.16,3.3]
[1752933437226,5.6415,177.17,177.16,3.3]
[1752933437721,8.03310441,177.18,177.16,3.3]
[1752933438525,11.14310441,177.18,177.17,3.3]
[1752933438918,8.7512,177.18,177.17,3.3]
[1752933439223,11.14310441,177.18,177.17,3.3]
[1752933440521,11.14310441,177.18,177.15,5.6419]
[1752933440522,5.6414,177.17,177.16,3.31]
[1752933440728,5.60190441,177.18,177.17,3.31]
[1752933441926,2.39190441,177.18,177.17,3.31]
[1752933442920,2.39190441,177.2,177.12,3.31]
[1752933443126,2.39190441,177.2,177.08,11.2879]
[1752933443127,2.39190441,177.2,177.14,3.31]
[1752933443322,2.39190441,177.2,177.15,4.44609846]
[1752933443528,2.39190441,177.2,177.19,3.31]
[1752933443925,5.64,177.22,177.19,8.9504]
[1752933444126,2.39190441,177.22,177.2,3.31]
[1752933444333,5.60190441,177.24,177.2,3.31]
[1752933444628,3.21,177.23,177.22,8.9496]
[1752933444826,2.39190441,177.24,177.22,5.6396]
[1752933445021,2.39190441,177.24,177.23,3.31]
[1752933445227,2.39190441,177.24,177.23,8.9494]
[1752933445532,3.21,177.25,177.23,3.31]
[1752933445728,3.21,177.25,177.24,3.31]
[1752933446030,5.60190441,177.25,177.24,3.31]
[1752933447231,2.39190441,177.25,177.17,2.39190441]
[1752933447425,3.21,177.24,177.23,3.31]
[1752933450135,8.03080441,177.25,177.23,3.31]
[1752933450330,3.21,177.24,177.23,3.31]
[1752933451331,3.21,177.23,177.17,3.31]
[1752933451532,3.21,177.2,177.13,2.39190441]
[1752933451730,3.21,177.2,177.19,3.31]
[1752933455632,3.21,177.2,177.18,3.31]
[1752933455832,3.21,177.19,177.18,3.31]
[1752933456635,3.21,177.18,177.13,3.31]
[1752933456824,2.39190441,177.19,177.14,4.4424221]
[1752933457025,3.21,177.17,177.16,3.31]
[1752933457334,5.60190441,177.17,177.16,3.31]
[1752933458436,3.21,177.16,177.15,3.31]
[1752933458636,5.60190441,177.16,177.15,3.31]
[1752933458934,11.24370441,177.16,177.15,3.31]
[1752933459136,5.6418,177.16,177.15,3.31]
[1752933459336,5.60190441,177.16,177.15,3.31]
[1752933461037,11.24360441,177.16,177.15,3.31]
[1752933461636,8.03360441,177.16,177.1,3.31]
[1752933461839,3.21,177.15,177.12,3.31]
[1752933462032,3.21,177.15,177.12,5.6427]
[1752933462432,3.21,177.15,177.14,3.31]
[1752933463339,2.39190441,177.15,177.14,5.6423]
[1752933463834,3.21,177.17,177.14,5.6423]
[1752933464038,103.76,177.23,177.17,3.31]
[1752933464039,3.21,177.2,177.17,3.31]
[1752933464238,2.39190441,177.17,177.09,110.89271423]
[1752933464440,2.39190441,177.17,177.1,4.44181648]
[1752933464639,2.39190441,177.17,177.16,3.31]
[1752933464835,2.39190441,177.19,177.16,3.31]
[1752933465338,2.39190441,177.19,177.18,8.951]
[1752933465534,2.39190441,177.19,177.18,3.31]
[1752933465737,5.60190441,177.19,177.18,3.31]
[1752933465930,3.21,177.18,177.17,3.31]
[1752933467242,2.39190441,177.19,177.17,3.31]
[1752933468044,2.39190441,177.2,177.18,3.31]
[1752933468644,2.39190441,177.2,177.18,8.951]
[1752933468844,2.39190441,177.2,177.19,3.31]
[1752933469040,5.60190441,177.2,177.19,3.31]
[1752933469246,3.21,177.19,177.13,3.31]
[1752933469542,3.21,177.18,177.15,3.31]
[1752933469738,3.21,177.18,177.16,10.08367497]
[1752933469938,8.03230441,177.2,177.17,3.31]
[1752933470146,3.21,177.19,177.17,3.31]
[1752933470844,3.21,177.19,177.16,5.6416]
[1752933471047,3.21,177.19,177.18,3.17]
[1752933473144,8.03230441,177.2,177.18,3.17]
[1752933473145,2.39190441,177.2,177.18,3.17]
[1752933473347,5.60190441,177.2,177.18,3.17]
[1752933473545,11.24250441,177.2,177.16,5.6416]
[1752933473846,11.24250441,177.2,177.17,3.17]
[1752933474547,11.24250441,177.2,177.18,3.17]
[1752933475346,2.39190441,177.2,177.18,8.811]
[1752933475548,2.39190441,177.2,177.19,3.17]
[1752933476143,5.60190441,177.2,177.12,7.13250391]
[1752933476443,2.39190441,177.19,177.14,3.17]
[1752933476648,2.39190441,177.19,177.16,3.17]
[1752933477147,2.39190441,177.2,177.16,3.17]
[1752933477540,2.39190441,177.22,177.17,4.4427232]
[1752933477743,2.39190441,177.24,177.21,3.17]
[1752933478142,8.03130441,177.24,177.21,3.17]
[1752933478341,2.39190441,177.24,177.21,3.17]
[1752933478947,2.39190441,177.24,177.22,5.6398]
[1752933479152,2.39190441,177.26,177.23,3.17]
[1752933480050,2.39190441,177.26,177.24,3.17]
[1752933480948,5.60190441,177.26,177.25,3.17]
[1752933481849,11.24040441,177.26,177.25,3.17]
[1752933483147,2.39190441,177.26,177.25,3.17]
[1752933483352,2.39190441,177.28,177.25,3.17]
[1752933483552,2.39190441,177.28,177.27,3.17]
[1752933483949,8.02920441,177.3,177.27,3.17]
[1752933484151,5.60190441,177.3,177.27,3.17]
[1752933484352,3.21,177.29,177.28,3.17]
[1752933484547,8.8478,177.29,177.28,3.17]
[1752933484746,3.21,177.29,177.26,3.17]
[1752933484953,5.60190441,177.28,177.27,3.17]
[1752933485550,3.21,177.3,177.27,3.17]
[1752933485754,2.39190441,177.29,177.27,3.17]
[1752933485949,2.39190441,177.29,177.27,8.8081]
[1752933486257,2.39190441,177.29,177.27,3.17]
[1752933487857,2.39190441,177.29,177.27,8.8081]
[1752933488059,8.8473,177.3,177.28,3.17]
[1752933488259,5.60190441,177.3,177.28,3.17]
[1752933488557,2.39190441,177.3,177.28,3.17]
[1752933488753,2.39190441,177.3,177.29,3.17]
[1752933489158,2.39190441,177.32,177.29,3.17]
[1752933489457,5.60190441,177.32,177.29,3.17]
[1752933490552,2.39190441,177.32,177.3,3.17]
[1752933490751,107.07,177.34,177.3,3.17]
[1752933490954,112.7062,177.34,177.3,5.637]
[1752933491158,2.39190441,177.33,177.31,3.17]
[1752933491556,2.39190441,177.33,177.27,3.17]
[1752933492359,2.39190441,177.33,177.32,3.17]
[1752933492754,2.39190441,177.33,177.31,5.6366]
[1752933493353,2.39190441,177.33,177.32,3.17]
[1752933494364,8.846,177.34,177.33,3.17]
[1752933494560,11.23790441,177.34,177.33,3.17]
[1752933495362,485.49190441,177.39,177.33,3.17]
[1752933495563,2.39190441,177.35,177.33,3.17]
[1752933496060,2.39190441,177.37,177.29,3.17]
[1752933496260,2.39190441,177.39,177.31,3.17]
[1752933496959,3.21,177.36,177.32,3.17]
[1752933497267,3.21,177.35,177.32,3.17]
[1752933497565,3.21,177.36,177.32,3.17]
[1752933498066,3.21,177.36,177.34,3.17]
[1752933498670,8.8453,177.36,177.35,3.17]
[1752933498868,3.21,177.35,177.34,3.17]
[1752933499167,2.39190441,177.35,177.32,3.17]
[1752933499370,3.21,177.33,177.32,3.17]
[1752933500369,8.02760441,177.35,177.32,8.8066]
[1752933500567,8.02760441,177.35,177.33,3.09]
[1752933500568,5.42190441,177.35,177.33,3.09]
[1752933500968,5.42190441,177.35,177.34,3.09]
[1752933501972,5.42190441,177.35,177.28,3.09]
[1752933502371,11.05770441,177.35,177.28,3.09]
[1752933502968,11.05770441,177.35,177.27,2.39190441]
[1752933502969,8.666,177.34,177.31,5.6367]
[1752933503170,8.666,177.34,177.33,3.09]
[1752933503770,3.03,177.34,177.33,3.09]
[1752933505077,5.42190441,177.35,177.34,3.09]
[1752933505673,11.05750441,177.35,177.34,3.09]
[1752933506471,11.05750441,177.35,177.31,5.6368]
[1752933506472,3.03,177.33,177.32,3.09]
[1752933506878,8.6663,177.33,177.32,3.09]
[1752933507179,3.03,177.32,177.31,3.09]
[1752933507678,3.03,177.32,177.3,8.7271]
[1752933507878,3.03,177.31,177.3,8.7271]
[1752933509979,5.42190441,177.32,177.31,8.7268]
[1752933510682,5.42190441,177.32,177.31,3.09]
[1752933511684,5.42190441,177.32,177.22,103.76]
[1752933511685,3.03,177.31,177.24,3.09]
[1752933511981,8.02850441,177.32,177.29,3.09]
[1752933511982,2.39190441,177.32,177.29,3.09]
[1752933512383,3.03,177.31,177.3,3.09]
[1752933513187,2.39190441,177.32,177.3,3.09]
[1752933513784,3.03,177.31,177.3,3.09]
[1752933514392,8.6669,177.31,177.3,3.09]
[1752933514690,3.03,177.3,177.29,3.09]
[1752933514889,5.42190441,177.3,177.29,3.09]
[1752933515083,2.39190441,177.3,177.29,3.09]
[1752933515286,8.6667,177.32,177.29,3.09]
[1752933515480,11.05860441,177.32,177.29,3.09]
[1752933515689,5.6363,177.33,177.29,3.09]
[1752933515886,2.39190441,177.32,177.29,3.09]
[1752933516086,5.42190441,177.32,177.29,3.09]
[1752933517586,5.42190441,177.32,177.29,8.7275]
[1752933517791,5.42190441,177.32,177.3,3.09]
[1752933519292,11.05850441,177.32,177.31,3.09]
[1752933519793,3.03,177.31,177.29,3.09]
[1752933519987,2.39190441,177.32,177.29,5.6375]
[1752933520185,2.39190441,177.32,177.3,3.09]
[1752933520587,2.39190441,177.32,177.3,5.6372]
[1752933520795,2.39190441,177.32,177.31,3.09]
[1752933521288,5.6361,177.34,177.32,3.09]
[1752933521289,2.39190441,177.34,177.32,3.09]
[1752933522183,5.42190441,177.34,177.32,3.09]
[1752933522584,3.03,177.37,177.28,3.09]
[1752933522790,2.39190441,177.39,177.32,3.09]
[1752933522993,2.39190441,177.39,177.34,3.09]
[1752933523189,2.39190441,177.39,177.36,5.6351]
[1752933523398,2.39190441,177.39,177.37,3.09]
[1752933523693,2.39190441,177.4,177.37,3.09]
[1752933523887,11.05610441,177.4,177.37,3.09]
[1752933524084,3.03,177.41,177.36,3.09]
[1752933524285,103.74,177.46,177.36,3.09]
[1752933524484,2.39190441,177.43,177.36,3.09]
[1752933525096,5.42190441,177.43,177.4,3.09]
[1752933526090,5.42190441,177.43,177.41,3.09]
[1752933526297,5.42190441,177.43,177.42,3.09]
[1752933527296,5.42190441,177.44,177.41,3.09]
[1752933527697,2.39190441,177.44,177.41,8.7234]
[1752933527893,2.39190441,177.44,177.42,3.09]
[1752933528300,2.39190441,177.46,177.42,3.09]
[1752933528605,8.02380441,177.47,177.43,5.6329]
[1752933528799,2.39190441,177.47,177.44,3.09]
[1752933529210,8.02320441,177.49,177.44,3.09]
[1752933529503,11.05320441,177.49,177.44,3.09]
[1752933529702,5.6315,177.48,177.44,5.6327]
[1752933530004,5.6315,177.48,177.45,3.09]
[1752933530005,8.6615,177.48,177.45,3.09]
[1752933530205,3.16,177.53,177.45,3.09]
[1752933530408,8.7913,177.49,177.45,3.09]
[1752933531102,5.6315,177.48,177.45,3.09]
[1752933531302,2.39190441,177.48,177.45,3.09]
[1752933531503,5.55190441,177.48,177.42,3.11]
[1752933531704,5.6321,177.47,177.43,3.11]
[1752933531901,8.7921,177.47,177.43,3.11]
[1752933532205,8.02350441,177.48,177.45,3.11]
[1752933532404,3.16,177.51,177.45,3.11]
[1752933532605,5.55190441,177.51,177.45,3.11]
[1752933533209,3.16,177.5,177.46,3.11]
[1752933533608,5.6313,177.49,177.46,3.11]
[1752933533906,2.39190441,177.51,177.47,3.11]
[1752933534311,5.55190441,177.53,177.47,3.11]
[1752933534499,103.86,177.54,177.49,3.11]
[1752933534706,5.55190441,177.53,177.49,3.11]
[1752933534900,5.55190441,177.53,177.45,2.39190441]
[1752933534901,3.16,177.52,177.5,3.11]
[1752933535100,3.16,177.52,177.39,217.84235095]
[1752933535101,2.39190441,177.51,177.44,2.39190441]
[1752933535308,3.16,177.5,177.49,3.11]
[1752933535910,8.791,177.5,177.49,3.11]
[1752933536109,5.631,177.5,177.49,3.11]
[1752933540313,5.631,177.5,177.39,216.30386913]
[1752933540314,3.16,177.49,177.43,3.11]
[1752933540704,2.39190441,177.48,177.43,3.11]
[1752933541010,8.7921,177.47,177.43,3.11]
[1752933541211,3.16,177.5,177.46,3.11]
[1752933541518,5.6314,177.49,177.46,3.11]
[1752933542009,5.6315,177.48,177.47,3.11]
[1752933542211,8.7915,177.48,177.47,3.11]
[1752933542410,2.39190441,177.49,177.47,3.11]
[1752933542608,5.55190441,177.52,177.47,3.11]
[1752933543216,5.6306,177.51,177.47,3.11]
[1752933543405,109.65190441,177.55,177.47,3.11]
[1752933543605,106.49190441,177.55,177.47,3.11]
[1752933543806,3.16,177.54,177.47,3.11]
[1752933544110,2.39190441,177.53,177.47,3.11]
[1752933544512,104.2,177.6,177.47,3.11]
[1752933544816,5.55190441,177.56,177.49,3.11]
[1752933545006,5.6295,177.55,177.5,5.6307]
[1752933545207,8.7895,177.55,177.51,3.11]